Cogmind - Beta 13 @@@ ROGUE MODE // 2024.05.04 @ 10:35:27 Player: Gabri Result: Destroyed by Y-45 Defender with Heavy Assault Rifle Performance ------------- Evolutions (0) 0 Regions Visited (2) 400 Robots Destroyed (33) 165 Value Destroyed (962) 962 Prototype IDs (0) 0 Alien Tech Used (0) 0 Bonus (0) 0 TOTAL SCORE: 1527 Bonus ------- None Cogmind --------- Core Integrity 0/250 Matter 249/300 Energy 150/150 System Corruption 0% Temperature Cool (9) Movement Walking (190) Ox1 Location -10/Subcaves Parts ------- > --- POWER (1) -------- Light Angular Momentum Engine > --- PROPULSION (2) --- Myomer Leg Myomer Leg > --- UTILITY (2) ------ High-capacity Storage Unit Structural Scanner > --- WEAPON (2) ------- Battle Rifle Subdweller Machine Gun > --- INVENTORY (20) --- Light Nuclear Core Neutrino Core Light Treads Aluminum Leg Carbon-fiber Leg Large Storage Unit Subdweller Optics Improved Terrain Scanner ECM Suite Scrap Shield Medium Laser Flail Peak State ------------ > --- POWER ------------ Light Angular Momentum Engine > --- PROPULSION ------- Myomer Leg Myomer Leg > --- UTILITY ---------- High-capacity Storage Unit Improved Terrain Scanner > --- WEAPON ----------- Battle Rifle Subdweller Machine Gun > --- INVENTORY -------- Light Nuclear Core Neutrino Core Light Treads Large Storage Unit Structural Scanner Subdweller Optics Scrap Shield Medium Laser Flail [Rating: 29] Favorites ----------- Power Ion Engine Engine Ion Engine Propulsion Light Treads Treads Light Treads Leg Myomer Leg Utility Large Storage Unit Device Seismic Detector Storage Large Storage Unit Processor Signal Interpreter Protection Scrap Shield Weapon Assault Rifle Energy Cannon Beam Cannon Ballistic Gun Assault Rifle Impact Weapon Flail Build | -11 -10 -10 ------- Run | Yrd Mat Sub Slots Evolved . | . . . Power . | . . . Propulsion . | . . . Utility . | . . . Weapon . | . . . Parts Attached 34 | 7 8 19 Power 5 | 1 2 2 Engine 5 | 1 2 2 Core . | . . . Reactor . | . . . Propulsion 8 | 2 3 3 Treads 2 | 2 . . Leg 6 | . 3 3 Wheel . | . . . Hover . | . . . Flight . | . . . Utility 11 | 2 2 7 Device 5 | 1 . 4 Storage 4 | 1 1 2 Processor 1 | . 1 . Hackware . | . . . Protection 1 | . . 1 Artifact . | . . . Weapon 10 | 2 1 7 Energy Gun . | . . . Energy Cannon 1 | . 1 . Ballistic Gun 7 | 2 . 5 Ballistic Cannon . | . . . Launcher . | . . . Special Weapon . | . . . Impact Weapon 2 | . . 2 Slashing Weapon . | . . . Piercing Weapon . | . . . Special Melee Weapon . | . . . Unidentified Prototypes . | . . . Parts Lost 6 | . 2 4 Power 3 | . 1 2 Propulsion 1 | . 1 . Utility 2 | . . 2 Weapon . | . . . Highest Loss Streak 2 | . 2 2 To Critical Strikes . | . . . Average Slot Usage (%) 99 | . 100 99 Engine 13 | . 14 13 Treads 14 | . 24 . Leg 13 | . 3 28 Device 11 | . 9 13 Storage 13 | . 14 13 Processor 2 | . 4 . Energy Cannon 7 | . 11 1 Ballistic Gun 17 | . 16 20 Impact Weapon 2 | . . 6 Naked Turns . | . . . Heaviest Build 56 | 14 31 56 Greatest Support 50 | 40 40 50 Greatest Overweight (x) 1 | . 1 1 Average Overweight (x) . | . . . Largest Inventory Capacity 20 | 8 15 20 Average Capacity 15 | 7 13 19 Most Carried 18 | 3 14 18 Average Carried 10 | 1 8 13 Final Capacity 20 | 8 15 20 Final Carried 13 | 3 13 13 Class Distribution -------------------- 92% | Mutant 7% | Scavenger-Mutant Dominant Class ---------------- Mutant | -10/Materials Mutant | -10/Subcaves Resources | -11 -10 -10 ----------- Run | Yrd Mat Sub Matter Collected 806 | 296 291 219 Remotely . | . . . Salvage Created 1237 | 86 842 309 Parts 80 | 7 48 25 Haulers Intercepted 1 | . 1 . Recyclers Shooed . | . . . Parts Field Recycled . | . . . Retrieved Matter . | . . . Parts Self-Destructed 7 | . . 7 Prevented . | . . . Kills | -11 -10 -10 ------- Run | Yrd Mat Sub Combat Hostiles Destroyed 28 | . 20 8 Guns 16 | . 8 8 Cannons 12 | . 12 . Classes Destroyed 7 | 2 4 1 Tunneler 2 | 2 . . Hauler 1 | . 1 . Recycler 1 | 1 . . Watcher 1 | . 1 . Swarmer 4 | . 3 1 Grunt 17 | . 17 . Subdweller 7 | . . 7 Best Kill Streak 3 | 2 3 3 Combat Bots Only 3 | . 3 3 Max Kills in Single Turn 1 | 1 1 1 Gunslinging . | . . . Exploded . | . . . Melee . | . . . Uniques/NPCs Destroyed . | . . . Combat | -11 -10 -10 -------- Run | Yrd Mat Sub Hostile Shots Fired 126 | . 79 47 Missed 40 | . 20 20 Damage Taken 1227 | . 666 561 Core 257 | . 116 141 Absorbed by Shields . | . . . Core Remaining (%) 100 | 100 . . Volleys Fired 92 | 9 63 20 Largest 2 | 2 2 2 Hottest 80 | 40 80 55 Shots Fired 184 | 18 126 40 Gun 138 | 18 80 40 Cannon 46 | . 46 . Launcher . | . . . Special . | . . . Kinetic 138 | 18 80 40 Thermal 46 | . 46 . Explosive . | . . . Electromagnetic . | . . . Robot Hit Streak 15 | 4 15 8 Robot Miss Streak 4 | 4 3 2 Penetration Max . | . . . Secondary Targets 3 | . . 3 Max Gunslinging Chain 1 | . . 1 Shots Hit Robots 117 | 9 76 32 Core Hits 51 | 5 33 13 Critical Kills . | . . . Critical Parts Destroyed 1 | . 1 . Critical Strikes 1 | . 1 . Destroy 1 | . 1 . Melee Attacks 21 | . . 21 Impact 21 | . . 21 Slashing . | . . . Piercing . | . . . Sneak Attacks 1 | . . 1 Combat Hostiles . | . . . Follow-up Attacks . | . . . Damage Inflicted 1766 | 98 1102 566 Guns 1223 | 98 559 566 Cannons 543 | . 543 . Explosions . | . . . Melee . | . . . Ramming . | . . . Kinetic 1223 | 98 559 566 Thermal 543 | . 543 . Explosive . | . . . Electromagnetic . | . . . Impact . | . . . Slashing . | . . . Piercing . | . . . Highest Corruption . | . . . Average Corruption . | . . . Corruption Purged . | . . . Corruption Blocked . | . . . Overload Shots . | . . . Overflow Damage 2 | . 2 . Projectiles 2 | . 2 . Explosions . | . . . Melee . | . . . Knockbacks . | . . . Impact . | . . . Kinetic . | . . . Secondary . | . . . Self-Inflicted Damage . | . . . Shots . | . . . Rammed . | . . . Targets Rammed . | . . . Kicked . | . . . Crushed . | . . . Highest Temperature 130 | . 130 . Average Temperature 39 | . 39 . Received Heat Transfer 450 | . 351 99 Siege Activations . | . . . Robots Corrupted . | . . . Combat Hostiles . | . . . Parts Fried . | . . . Impact Corruptions . | . . . Robots Melted . | . . . Combat Hostiles . | . . . Parts Melted 1 | . . 1 Heat Transferred 1147 | . 1147 . Parts Sabotaged . | . . . Parts Stolen . | . . . Parts Stripped . | . . . Power Chain Reactions . | . . . Alert | -11 -10 -10 ------- Run | Yrd Mat Sub Peak Influence 230 | 15 230 . Initial 9 | . 9 . Average 76 | 5 80 . Maximum Alert Level 1 | . 1 . Low Security (%) 98 | 100 98 . Level 1 1 | . 1 . Level 2 . | . . . Level 3 . | . . . Level 4 . | . . . Level 5 . | . . . High Security . | . . . Max Security . | . . . Squads Dispatched 4 | . 4 . Investigation 3 | . 3 . Extermination . | . . . Reinforcement 1 | . 1 . Assault . | . . . Garrison . | . . . Intercept . | . . . Searches Triggered . | . . . Construction Impeded . | . . . Haulers Reinforced . | . . . Active Scanning Responses . | . . . Cargo Convoy Interrupts . | . . . Stealth | -11 -10 -10 --------- Run | Yrd Mat Sub Distress Signals 5 | . 5 . Communications Jammed . | . . . Distress Signals . | . . . Times Spotted 54 | . 38 16 Peak Tracking Total 7 | . 5 7 Tactical Retreats 4 | . 4 . Traps | -11 -10 -10 ------- Run | Yrd Mat Sub Traps Triggered 3 | . 3 . Indirectly . | . . . Trap Hack Attempts . | . . . Triggered . | . . . Disarmed . | . . . Reprogrammed . | . . . Reused . | . . . Traps Extracted . | . . . Installed . | . . . Triggered . | . . . Most Traps Carried 1 | . . 1 Machines | -11 -10 -10 ---------- Run | Yrd Mat Sub Machines Disabled . | . . . Max in Single Turn . | . . . Machines Repaired . | . . . Machines Dismantled . | . . . Machines Sabotaged . | . . . Overloaded Fab Kills . | . . . Hacking | -11 -10 -10 --------- Run | Yrd Mat Sub Machines Accessed 7 | . 7 . Terminals 6 | . 6 . Fabricators . | . . . Repair Stations 1 | . 1 . Recycling Units . | . . . Scanalyzers . | . . . Garrison Access . | . . . Total Hacks 16 | . 16 . Successful 7 | . 7 . Failed 9 | . 9 . Catastrophic 2 | . 2 . Database Lockouts . | . . . Manual 11 | . 11 . Terminals 15 | . 15 . Fabricators . | . . . Repair Stations 1 | . 1 . Recycling Units . | . . . Scanalyzers . | . . . Garrison Access . | . . . Terminal Hacks 5 | . 5 . Part Schematic 1 | . 1 . Branch Access Points 1 | . 1 . Unreport Threat 1 | . 1 . Hauler Manifests 1 | . 1 . Zone Layout 1 | . 1 . Fabricator Hacks . | . . . Repair Station Hacks . | . . . Recycling Unit Hacks . | . . . Scanalyzer . | . . . Garrison Access Hacks . | . . . Unauthorized Hacks 2 | . 2 . Terminals 2 | . 2 . Botnet 2 | . 2 . Fabricators . | . . . Repair Stations . | . . . Recycling Units . | . . . Scanalyzers . | . . . Garrison Access . | . . . Data Cores Recovered . | . . . Used . | . . . Hacking Detections 5 | . 5 . Full Trace Events . | . . . Feedback Events . | . . . Feedback Blocked . | . . . Robot Schematics Acquired . | . . . Robots Built . | . . . Authchips . | . . . Time . | . . . Total Robot Build Rating . | . . . Part Schematics Acquired 1 | . 1 . Parts Built . | . . . Authchips . | . . . Time . | . . . Total Part Build Rating . | . . . Parts Repaired . | . . . Time . | . . . Parts Recycled . | . . . Recycled Matter . | . . . Retrieved Matter . | . . . Retrieved Components . | . . . Parts Scanalyzed . | . . . Part Schematics Acquired . | . . . Parts Damaged . | . . . Bothacking | -11 -10 -10 ------------ Run | Yrd Mat Sub Used RIF Installer . | . . . Robots Hacked . | . . . Non-combat . | . . . Combat . | . . . Robot Hacks Applied . | . . . Relay Couplers Released . | . . . Fabnet Peak Effective % . | . . . Robots Rewired . | . . . Allies Hacked . | . . . Hacks Repelled . | . . . Allies | -11 -10 -10 -------- Run | Yrd Mat Sub Total Allies . | . . . Largest Group . | . . . Highest-Rated Group . | . . . Highest-Rated Ally . | . . . Total Orders . | . . . Ally Attacks . | . . . Total Damage . | . . . Kills . | . . . Allies Corrupted . | . . . Allies Melted . | . . . Intel | -11 -10 -10 ------- Run | Yrd Mat Sub Robot Analysis Total . | . . . Derelict Logs Recovered 1 | . . 1 Drone Launches . | . . . Drone Recoveries . | . . . Exploration | -11 -10 -10 ------------- Run | Yrd Mat Sub Turns Passed 3560 | 115 2038 1407 Spaces Moved 1625 | 50 833 742 Core 2 | 2 . . Treads 837 | 48 789 . Legs 786 | . 44 742 Wheels . | . . . Hover . | . . . Flight . | . . . Fastest Speed 50 | 50 160 120 Average Speed 164 | 155 161 168 Slowest Speed 240 | 160 240 190 Overloaded Moves . | . . . Propulsion Burnouts . | . . . Robots Hopped . | . . . Cave-ins Triggered . | . . . Exploration Rate (%) 47 | 5 97 40 Regions Visited 2 Branch Regions 1 Pre-discovered Areas 1 | . . 1 Known Exits Taken 1 | . 1 . Unknown Exits Taken 1 | 1 . . Scrap Searched 4 | . . 4 Spaces Dug 1 | . . 1 Terrain Destroyed 1 | . . 1 Melee 1 | . . 1 Projectile . | . . . AOE . | . . . Terrain Rammed . | . . . Walls Destroyed . | . . . Machines Disabled . | . . . Actions | -11 -10 -10 --------- Run | Yrd Mat Sub Total 2297 | 68 1400 829 Wait 495 | . 488 7 Move 1623 | 49 832 742 Hop . | . . . Pick Up 24 | 3 8 13 Fast Attach 13 | 7 1 5 Attach 6 | . 2 4 Detach 2 | . 1 1 Swap 15 | . 5 10 Drop 6 | . . 6 Fire 92 | 9 63 20 Melee 21 | . . 21 Ram . | . . . Kick . | . . . Crush . | . . . Escape Stasis . | . . . Rewire . | . . . Trap . | . . . Miscellaneous . | . . . Route ------- -11/Scrapyard -10/Materials (discovered 6 exits: *Mat x3 / *Min x2 / *Sub) -10/Subcaves (discovered 1 exit: [*Mat]) History --------- Turn | Location | Event 6 | -11/Scrapyard | Discovered new exit (range 15) 116 | -11/Scrapyard | Entered Materials 199 | -10/Materials | Discovered new exit (range 7) 311 | -10/Materials | Build established: Mutant 681 | -10/Materials | Discovered new exit (range 11) 1247 | -10/Materials | Discovered new exit (range 13) 1483 | -10/Materials | Discovered new exit (range 16) 1507 | -10/Materials | Identified exit to Materials 1547 | -10/Materials | Identified exit to Mines 1799 | -10/Materials | Discovered exit to Materials (range 8) 2141 | -10/Materials | Discovered new exit (range 6) 2153 | -10/Materials | Identified exit to Subcaves 2154 | -10/Materials | Entered Subcaves 2230 | -10/Subcaves | Core integrity fell below 50% 2310 | -10/Subcaves | Ambushed by swarm of Subdwellers 2318 | -10/Subcaves | Ambushed by Subdwellers from Twisted Machinery 2370 | -10/Subcaves | Lost 4 allies 2522 | -10/Subcaves | Shifting Twisted Machinery released Flamer 2632 | -10/Subcaves | Discovered new exit (range 6) 2637 | -10/Subcaves | Learned location of Zion (-7) 2669 | -10/Subcaves | Core integrity fell below 20% 2873 | -10/Subcaves | A swath of the cavern ceiling suddenly collapsed 3202 | -10/Subcaves | Shifting Twisted Machinery released Scrap Shield 3396 | -10/Subcaves | Shifting Twisted Machinery released Piercing Trap 3397 | -10/Subcaves | Shifting Twisted Machinery released Mak. Kinetic Plating 3421 | -10/Subcaves | Shifting Twisted Machinery released Battle Cannon 3561 | -10/Subcaves | Destroyed by Y-45 Defender with Heavy Assault Rifle Last Messages --------------- 02981_ Sneak attack on YO-3N9(u). Scrap Shield falls loose from the Twisted Machinery. 03242_ Sub. Monowheel melted. 03242_ O8-70W(R) destroyed. 03245_ Acquired 34 matter. 03341_ Subatomizers dissect the Sub. Monowheel. Piercing Trap falls loose from the Twisted Machinery. Mak. Kinetic Plating falls loose from the Twisted Machinery. 03413_ Acquired Piercing Trap. Battle Cannon falls loose from the Twisted Machinery. 03548_ S-10 Pest destroyed. 03548_ Switching to secondary target: Y-45 Defender. 03554_ Dropped Piercing Trap. 03556_ Lgt. Ion Engine fries itself beyond repair. Map ----- +----------------------------------------------------+ | ?????????# # ### ##### # ##??? | | ??????????? #### ##### ## " ###??? | | ??????????????## ### # # ## ""## "##??? | | ??????????????### "## "##??? | | ???????????????### #" ##??? | | ????????????????## ## #### "# #####? | | ????????????????## ### ###### "" "####? | | ?????????????????# ?#### ########""""""! " ##? | | ?????????????????#???### ###########"""# "# ##? | | ?????????????????????## ####### ####""#### ##? | | ?????????????????????## ##### ###"""##" ##? | | ?????????????????????## #### ####"# ]" ###? | | ????????????????????? ## #### ####" """ ###? | | ?????????????????????#### #### #####"#"" ###?? | | ?????????????????????#### ### #######" ###?? | | ????????????????????### ########"""###? | | ????????????????????#### ###??### ##? | | ????????????????????## #### ##???## ###? | | ????????????????????## #### "##???### ###? | | ????????????????????## # #### #####???#######?? | | ????????????????????## ####### ####????######?? | | ????????????????????## ##### ##?????????????? | | ????????????????????### # ###?????????????? | | ????????????????????## ####?????????????? | | ????????????????????## ###??????????????? | | ????????????????????### @& ##???????????????? | | ????????????????????######Y ##???????????????? | | ?????????????????????#####& ####???????????????? | | ????????????????????????]%= ####???????????????? | | ?????????????????????? !! ###?????????????????? | | ????????????????????? ### ?????????????????? | | ??????????????????? ## ??????????????????? | | ?????????????????? ????????????????????? | | ????????????????? ?????????????????????? | | ????????????????? ?????????????????????? | | ????????????????? ###### ?????????????????????? | | ?????????????????######### ????????????????????? | | ??????????????????????#######????????????????????? | | ????????????????????????#####????????????????????? | | ?????????????????????????????????????????????????? | | ?????????????????????????????????????????????????? | | ?????????????????????????????????????????????????? | | ?????????????????????????????????????????????????? | | ?????????????????????????????????????????????????? | | ?????????????????????????????????????????????????? | | ?????????????????????????????????????????????????? | | ?????????????????????????????????????????????????? | | ?????????????????????????????????????????????????? | | ?????????????????????????????????????????????????? | | ?????????????????????????????????????????????????? | +----------------------------------------------------+ Best States ------------- Heat Dissipation 39 Energy Generation 18 Energy Capacity 250 Matter Stores 300 Matter Capacity 300 Sight Range 16 Terrain Scan Range 16 Terrain Scan Density 10 Armor Coverage 800 Evasion (%) 55 Recoil Reduction 2 Item Schematics ----------------- Lgt. Treads | -10/Materials | Hacked Robot Schematics ------------------ None Fabricated ------------ Nothing Alien Tech Used ----------------- None Achievements -------------- None Challenges ------------ None Game ------ Seed BladeAerolevConstruct Manual? 0 Play Time 00:38:09 Cumulative 10.3 hours Start 2024.05.04 @ 09:58:58 End 2024.05.04 @ 10:35:27 Sessions 1 Manual Loads 0 Difficulty Rogue Special Mode None Game No. 8 Rogue 8 Adventurer 0 Explorer 0 Win Type - Total 0 Types 0/0/0/0/0/0/0/0/0 Lore% 9 Gallery% 16 Achievement% 14 Wizard Run 0 Options --------- Layout 1 ASCII 0 Keyboard 0 Movement Mouse Keybinds 0 Fullscreen 1 Font 24/Smallcaps Map View 50x35 Zoom Use 0% Tactical HUD 1 Map Filters NONE Filters NONE Steam 1 RUN: c68e61d4-ce4e-41e1-9bcf-d1bb2c4d3268